bitfinex/quotes_ETHUSD_20260113
["timestamp","ask_amount","ask_price","bid_price","bid_amount"]
[1768283400643,0.48782523,3139.7,3139.3,0.25]
[1768283400948,0.48782523,3139.7,3139.2,0.251]
[1768283401157,0.48782523,3139.7,3139.3,0.90400514]
[1768283401345,0.002,3139.8,3139.3,0.90400514]
[1768283402281,0.002,3139.5,3139.3,0.90400514]
[1768283409075,0.002,3139.5,3139.4,0.25]
[1768283410497,0.002,3139.5,3139.4,1.23772809]
[1768283412896,0.002,3139.5,3139.2,0.001]
[1768283413084,0.002,3139.5,3139.4,0.25]
[1768283414799,0.002,3139.5,3139.3,0.25]
[1768283417375,0.002,3139.5,3139.2,0.001]
[1768283417574,0.002,3139.5,3139.2,0.251]
[1768283417802,0.48982523,3139.5,3139.2,0.001]
[1768283418904,0.002,3139.5,3139.2,0.001]
[1768283422718,0.97458857,3139.5,3139.2,0.001]
[1768283423221,0.002,3139.5,3139.2,0.001]
[1768283423537,4.87625233,3139.4,3138.7,0.00080208]
[1768283423718,0.97258857,3139.2,3138.7,0.00080208]
[1768283423898,0.97258857,3139.1,3138.7,0.00080208]
[1768283426460,0.5,3139.2,3138.7,0.00080208]
[1768283426889,6.3488409,3139.2,3138.7,0.00080208]
[1768283427096,9.53439018,3139.2,3138.7,0.00080208]
[1768283427317,1.33049238,3139.1,3138.7,0.00080208]
[1768283427736,2.30308095,3139.1,3138.7,0.00080208]
[1768283428319,0.97258857,3138.9,3138.7,0.00080208]
[1768283428714,4.87625233,3139.0,3138.7,0.00080208]
[1768283429030,3.18577084,3139.0,3138.7,0.00080208]
[1768283429194,0.54888518,3138.9,3138.7,0.00080208]
[1768283430730,0.97258857,3138.8,3138.1,0.91368831]
[1768283430913,4.87625233,3138.7,3138.1,0.25]
[1768283431130,0.97258857,3138.8,3138.1,0.25]
[1768283431831,0.97258857,3138.8,3137.8,0.91368831]
[1768283432129,0.97258857,3138.8,3137.9,0.83218111]
[1768283432929,0.97258857,3138.8,3138.0,3.18674314]
[1768283433727,0.97258857,3138.7,3137.9,4.9326982]
[1768283433949,0.97258857,3138.7,3138.0,0.91368831]
[1768283434136,4.87625233,3138.8,3138.0,0.91368831]
[1768283434709,4.87625233,3138.8,3138.1,0.96336605]
[1768283435515,5.8488409,3139.0,3138.1,0.96336605]
[1768283435708,5.8488409,3139.0,3138.2,0.96336605]
[1768283437337,0.97258857,3139.0,3138.2,0.96336605]
[1768283437702,0.97258857,3139.0,3138.3,0.96436605]
[1768283437904,1.92953025,3139.0,3138.3,0.96436605]
[1768283438434,0.9379228,3138.8,3138.3,0.001]
[1768283439541,4.12395523,3138.7,3138.3,0.001]
[1768283439836,0.9379228,3138.5,3137.6,0.0008094]
[1768283440133,0.9379228,3138.3,3137.6,0.0008094]
[1768283440836,0.9379228,3138.3,3137.6,0.96417545]
[1768283442636,0.9379228,3138.3,3137.6,0.0008094]
[1768283443139,0.93872424,3137.8,3136.2,0.0008012]
[1768283443341,4.87844889,3136.6,3136.1,0.96336605]
[1768283443548,0.0008012,3136.6,3135.9,0.96436605]
[1768283444041,0.0008012,3136.6,3135.9,0.001]
[1768283444225,0.938724,3136.6,3135.9,0.001]
[1768283444428,0.0008012,3136.6,3135.9,0.001]
[1768283444619,0.0008012,3136.6,3136.0,1.70549992]
[1768283444815,0.0008012,3136.6,3136.0,0.74213387]
[1768283445046,0.0008012,3136.6,3136.0,1.21436605]
[1768283445757,0.0008012,3136.6,3136.1,3.18867383]
[1768283449327,0.0008012,3136.6,3136.3,0.001]
[1768283453748,0.938724,3136.6,3136.3,0.001]
[1768283453949,0.0008012,3136.6,3136.3,0.001]
[1768283454776,0.9379228,3136.5,3136.0,3.18655522]
[1768283455068,0.0008012,3136.6,3136.0,3.18655522]
[1768283455450,0.938724,3136.6,3136.0,3.18655522]
[1768283455837,0.0008012,3136.6,3136.0,3.18655522]
[1768283456038,0.0008012,3136.6,3136.0,4.14992127]
[1768283456567,0.0008012,3136.6,3136.1,0.96336605]
[1768283457874,0.0008012,3136.6,3136.0,3.18655522]
[1768283458044,0.0008012,3136.6,3136.1,0.96336605]
[1768283458944,0.0008012,3136.6,3136.1,4.15203882]
[1768283459145,0.0008012,3136.6,3136.2,0.96336605]
[1768283460472,0.251,3137.4,3136.4,0.96336605]
[1768283460674,0.251,3137.4,3135.9,0.252]
[1768283460675,0.00080128,3136.6,3136.0,0.251]
[1768283460969,0.00080128,3136.6,3136.0,1.21436605]
[1768283461170,0.00080128,3136.6,3136.1,0.96336605]
[1768283461376,0.002,3136.3,3136.2,4.15189524]
[1768283461676,0.002,3136.6,3136.2,3.95168593]
[1768283462475,0.002,3136.6,3136.3,0.96336605]
[1768283462879,0.002,3136.6,3136.2,3.95168593]
[1768283463574,0.002,3136.6,3136.2,4.91505198]
[1768283464010,0.9379228,3137.0,3136.2,4.91505198]
[1768283464276,0.9379228,3137.2,3136.4,4.15173488]
[1768283464882,0.9379228,3137.2,3136.4,3.18836883]
[1768283465580,0.9379228,3137.2,3136.3,3.18843899]
[1768283466570,0.9379228,3137.2,3136.2,0.00080136]
[1768283466946,0.9379228,3137.2,3136.2,0.96975142]
[1768283467149,0.9379228,3137.2,3135.6,3.82]
[1768283467347,0.9379228,3137.2,3133.4,4.80043914]
[1768283467348,0.99135605,3135.1,3134.0,0.96895006]
[1768283467546,0.00080296,3135.1,3134.0,0.96895006]
[1768283467748,0.00080296,3135.1,3134.4,0.96895006]
[1768283467969,0.00080296,3135.1,3134.6,0.96895006]
[1768283468172,0.00080296,3135.1,3134.7,0.96895006]
[1768283468349,0.1663,3135.6,3134.8,0.96895006]
[1768283469203,0.1663,3135.6,3134.8,4.15893404]
[1768283470197,0.1455,3135.6,3134.9,0.96895006]
[1768283470399,0.99135517,3136.0,3135.0,0.251]
[1768283470556,0.68504233,3135.9,3135.1,0.96895006]
[1768283470757,0.62232982,3135.7,3135.6,0.02314172]
[1768283470998,0.00080208,3136.0,3135.6,0.02314172]
[1768283470999,0.79378556,3135.9,3135.6,0.02314172]
[1768283471305,0.19604427,3135.8,3135.6,0.02314172]
[1768283471469,0.98982983,3135.8,3134.9,0.251]
[1768283471812,0.79378463,3135.6,3134.9,0.251]
[1768283471964,0.79378463,3135.6,3134.7,3.19087942]
[1768283472164,0.79378463,3135.6,3134.8,0.251]
[1768283472974,0.79378463,3135.6,3134.7,3.19087942]
[1768283473170,4.87844889,3135.1,3134.4,0.96895006]
[1768283473393,4.87925193,3135.1,3134.4,1.21995006]
[1768283473563,0.00080304,3135.1,3134.4,1.21995006]
[1768283473762,0.00080304,3135.1,3134.4,3.4413863]
[1768283474272,0.00080304,3135.1,3134.5,3.19028498]
[1768283476591,0.79458233,3135.1,3134.5,3.02788922]
[1768283477303,0.00080304,3135.1,3134.4,3.19040326]
[1768283477994,0.79458148,3135.1,3134.3,0.251]
[1768283478361,0.79377844,3135.0,3134.3,0.251]
[1768283478563,0.79377844,3135.0,3133.9,0.97049463]
[1768283478864,0.79377844,3135.0,3134.3,3.19049524]
[1768283479375,0.79377844,3135.0,3134.1,6.3814173]
[1768283480396,0.00080304,3135.1,3134.2,0.96968867]
[1768283480566,0.00080304,3135.1,3134.2,2.21774416]
[1768283480895,0.79457897,3135.1,3134.2,2.21774416]
[1768283481108,0.79457897,3135.1,3133.0,0.96968867]
[1768283481109,4.87844889,3134.3,3133.0,0.96968867]
[1768283481414,4.87844889,3133.9,3133.1,0.96968867]
[1768283481758,0.00080384,3134.1,3133.2,0.96968867]
[1768283481998,0.00080384,3134.1,3133.4,0.96968867]
[1768283482509,4.87844889,3133.9,3133.2,0.96968867]
[1768283482669,4.87844889,3133.9,3133.1,0.251]
[1768283483310,0.00080384,3134.1,3133.1,0.251]
[1768283483730,0.00080384,3134.1,3133.1,4.41240831]
[1768283484008,0.00080384,3134.1,3133.2,0.96968867]
[1768283485508,0.00080384,3134.1,3133.4,0.96968867]
[1768283486011,0.011,3133.8,3133.3,4.16121198]
[1768283486312,0.00080384,3134.1,3133.4,0.252]
[1768283486680,0.00080384,3134.1,3133.9,0.011]
[1768283486881,0.00080384,3134.1,3133.9,0.262]
[1768283487190,0.00080384,3134.1,3133.9,0.011]
[1768283487388,0.00080384,3134.1,3133.0,3.15982891]
[1768283487703,0.00080384,3134.1,3133.1,0.98314405]
[1768283488523,0.03269464,3134.1,3133.1,0.98314405]
[1768283488820,0.03269464,3134.1,3133.2,0.251]
[1768283490485,3.22343278,3134.1,3132.9,4.16158262]
[1768283490679,3.22343278,3134.1,3133.0,0.251]
[1768283490680,0.32234328,3134.0,3133.0,0.251]
[1768283490898,0.0318908,3133.9,3133.1,0.251]
[1768283492407,0.35423408,3134.0,3133.0,0.96968867]
[1768283492586,0.32234328,3134.0,3133.2,0.251]
[1768283493104,0.0318908,3133.9,3133.2,0.251]
[1768283494516,0.38646619,3133.9,3133.2,0.251]
[1768283495116,0.38646619,3133.9,3133.0,4.16150132]
[1768283495298,3.57738879,3133.9,3133.1,0.251]
[1768283495497,0.38646619,3133.9,3133.1,0.251]
[1768283496390,3.57739104,3133.9,3133.1,0.251]
[1768283496590,0.3577391,3133.8,3133.1,0.251]
[1768283496790,0.0318908,3133.7,3133.2,0.251]
[1768283497385,0.0318908,3133.7,3132.8,3.19203268]
[1768283497589,0.0318908,3133.7,3132.9,0.251]
[1768283498735,0.0318908,3133.7,3132.9,1.16368344]
[1768283498890,0.0318908,3133.7,3133.2,0.001]
[1768283499229,0.002,3133.6,3133.2,0.001]
[1768283501568,0.002,3133.6,3133.3,0.251]
[1768283501719,0.002,3133.6,3133.2,0.001]
[1768283501918,0.002,3133.6,3133.3,0.251]
[1768283502215,3.55148245,3133.6,3132.7,1.54307685]
[1768283502416,0.0318908,3133.5,3132.7,0.63039341]
[1768283502727,0.81460768,3133.4,3132.8,0.251]
[1768283502926,6.38325034,3133.2,3132.5,0.00081597]
[1768283503226,1.50074287,3133.1,3132.5,0.00081597]
[1768283503433,1.47453451,3133.0,3132.5,0.00081597]
[1768283503594,0.6861677,3132.9,3132.3,0.251]
[1768283503992,0.5,3132.7,3132.0,0.91268344]
[1768283504221,0.5,3132.7,3132.2,0.251]
[1768283504430,0.5,3132.7,3132.0,0.91268344]
[1768283504633,0.5,3132.7,3132.1,0.84068344]
[1768283505603,1.35899583,3132.7,3132.1,0.84068344]
[1768283507441,0.5,3132.7,3132.2,0.91268344]
[1768283508143,0.0318908,3133.2,3132.6,0.91268344]
[1768283508328,4.92989575,3133.5,3132.7,0.251]
[1768283508638,5.00187553,3133.5,3132.7,0.251]
[1768283508840,0.85533887,3133.4,3132.7,0.251]
[1768283509009,0.0318908,3133.3,3132.5,0.91268344]
[1768283509212,0.0318908,3133.3,3132.1,3.19271073]
[1768283509213,0.10387058,3133.3,3132.6,0.251]
[1768283509414,3.19162517,3133.2,3132.7,0.251]
[1768283509728,0.0318908,3133.1,3132.6,0.251]
[1768283510640,0.0318908,3133.2,3132.6,0.251]
[1768283510942,0.93676557,3133.2,3132.7,0.251]
[1768283511441,4.12848287,3133.2,3132.7,0.251]
[1768283511643,0.07197804,3133.1,3132.6,0.251]
[1768283511845,0.0318908,3133.0,3132.6,0.251]
[1768283512211,0.0318908,3133.0,3132.5,0.91268344]
[1768283512439,0.0318908,3133.0,3132.6,0.251]
[1768283512942,0.0318908,3133.1,3132.6,1.16368344]
[1768283513239,0.0318908,3133.1,3132.7,0.91268344]
[1768283513444,3.22342542,3133.3,3132.7,0.91268344]
[1768283513639,4.35490346,3133.3,3132.7,0.91268344]
[1768283514140,1.16336884,3133.3,3132.7,0.91268344]
[1768283514444,0.002,3133.4,3132.8,0.91268344]
[1768283517443,439.15522,3133.3,3132.8,0.91268344]
[1768283519044,439.15522,3133.3,3132.6,0.91268344]
[1768283519235,439.15522,3133.3,3132.9,0.251]
[1768283519414,439.15522,3133.3,3132.6,0.91268344]
[1768283519614,1.30539895,3133.2,3132.7,0.251]
[1768283519808,1.30539895,3133.2,3132.7,1.16368344]
[1768283520013,439.15522,3133.3,3132.7,1.16368344]
[1768283520236,0.0318908,3133.2,3132.7,1.16368344]
[1768283520454,0.0318908,3133.2,3132.8,0.251]
[1768283521764,439.15522,3133.3,3132.9,0.91268344]
[1768283522143,439.15522,3133.3,3133.0,0.251]
[1768283522335,439.15522,3133.3,3133.1,0.91268344]
[1768283523237,430.15639047,3133.3,3133.1,0.91268344]
[1768283523431,310.73249777,3133.3,3133.1,4.89800495]
[1768283523651,305.84895376,3133.3,3133.1,4.89800495]
[1768283524263,299.32887315,3133.3,3133.1,4.89800495]
[1768283524762,299.32887315,3133.3,3133.1,5.77401152]
[1768283525467,292.96799134,3133.3,3133.1,5.77401152]
[1768283526283,292.96799134,3133.3,3133.2,0.251]
[1768283526284,290.6760895,3133.3,3133.2,0.251]
[1768283527761,290.6760895,3133.3,3133.2,0.20007574]
[1768283528367,290.18708951,3133.3,3133.2,0.251]
[1768283529756,289.69808952,3133.3,3133.2,0.11178652]
[1768283530264,288.14205723,3133.3,3133.2,0.11178652]
[1768283531872,288.14205723,3133.3,3132.8,5.92213435]
[1768283532185,288.13695177,3133.3,3132.9,1.16242445]
[1768283532393,286.10213066,3133.3,3132.9,2.21640164]
[1768283532576,286.09447223,3133.3,3132.9,1.16242445]
[1768283533375,286.09447223,3133.3,3133.1,4.89800495]
[1768283533376,274.98282428,3133.3,3133.1,4.89800495]
[1768283533575,263.60525182,3133.3,3133.2,1.04660601]
[1768283533776,262.31725182,3133.3,3133.2,1.04660601]
[1768283533976,254.64008331,3133.3,3133.0,3.19176155]
[1768283534281,249.98887635,3133.3,3133.1,0.79748069]
[1768283534575,246.79430653,3133.3,3133.1,0.79748069]
[1768283534758,246.79430653,3133.3,3133.2,1.25568269]
[1768283534957,243.59973671,3133.3,3133.2,1.25568269]
[1768283535168,240.40516689,3133.3,3133.2,1.25568269]
[1768283535360,240.40516689,3133.3,3133.2,1.78017518]
[1768283535659,237.21059707,3133.3,3133.2,1.78017518]
[1768283535861,237.21059707,3133.3,3133.2,0.52449249]
[1768283536100,237.21059707,3133.3,3133.1,0.79748069]
[1768283536592,237.21059707,3133.3,3133.1,2.35892075]
[1768283539180,234.01596176,3133.3,3133.1,0.79748069]
[1768283539481,234.01596176,3133.3,3133.1,1.56144006]
[1768283539686,230.82132645,3133.3,3133.1,1.56144006]
[1768283540557,224.43203163,3133.3,3133.1,3.1917206]
[1768283540881,218.04288696,3133.3,3133.0,3.19182891]
[1768283541087,214.84831463,3133.3,3133.0,3.19182891]
[1768283541292,211.6537709,3133.3,3133.1,0.34428289]
[1768283541494,200.39491156,3133.3,3133.1,0.34428289]
[1768283541789,0.002,3133.4,3133.1,1.90572295]
[1768283541980,0.002,3133.9,3133.2,1.56824361]
[1768283542160,4.90000495,3133.9,3133.2,1.56824361]
[1768283542364,6.38792851,3133.9,3133.3,0.203466]
[1768283542564,1.48792356,3133.8,3133.4,0.251]
[1768283546262,1.48792356,3133.8,3133.5,0.251]
[1768283546575,1.48792356,3133.8,3133.6,0.251]
[1768283548103,1.48792356,3133.8,3133.7,0.001]
[1768283551096,1.48792356,3133.8,3133.6,0.17205078]
[1768283552289,1.48792356,3133.8,3133.3,0.01221335]
[1768283552290,4.89800495,3133.7,3133.3,0.01221335]
[1768283552489,6.38592851,3133.7,3133.3,0.01221335]
[1768283552702,6.38592851,3133.7,3133.4,0.251]
[1768283552900,4.89800495,3133.7,3133.4,0.251]
[1768283555303,4.89800495,3133.7,3133.3,0.01221335]
[1768283555504,4.89800495,3133.7,3133.4,0.251]
[1768283558401,4.89800495,3133.8,3133.3,0.01221335]
[1768283558607,4.89800495,3133.8,3133.5,0.251]
[1768283559195,8.40736653,3133.8,3133.3,0.01221335]
[1768283559390,3.50936158,3133.8,3133.4,0.251]
[1768283562522,3.50936158,3133.8,3133.5,0.251]
[1768283564420,6.64911808,3133.8,3133.0,3.68841703]
[1768283564723,6.64911808,3133.8,3133.1,0.6198417]
[1768283564923,3.4581039,3133.8,3133.1,0.6198417]
[1768283565438,8.08722403,3133.9,3133.2,3.68841703]
[1768283566927,8.08722403,3133.9,3133.3,0.251]
[1768283568497,0.002,3133.9,3133.3,0.251]
[1768283570098,0.002,3133.9,3133.4,3.72033027]
[1768283570405,0.002,3134.5,3134.1,3.68841703]
[1768283570723,0.002,3134.5,3134.2,0.24334352]
[1768283570897,0.002,3134.5,3134.2,0.23823939]
[1768283571098,0.002,3134.5,3134.2,0.23568733]
[1768283571399,1.48059584,3134.5,3134.2,0.23568733]
[1768283573844,4.67092365,3134.5,3134.0,3.68841703]
[1768283574142,4.67092365,3134.5,3134.1,0.251]
[1768283577138,3.50936158,3134.4,3134.1,0.251]
[1768283577444,1.30745671,3134.4,3134.1,0.251]
[1768283577655,0.002,3134.5,3134.1,3.93941703]
[1768283578178,0.002,3134.5,3134.1,0.251]
[1768283579416,0.002,3134.5,3134.2,3.68841703]
[1768283579733,0.00281912,3135.0,3134.1,0.251]
[1768283579734,0.00281912,3135.0,3134.7,3.68841703]
[1768283579935,0.00281912,3135.0,3134.8,0.251]
[1768283580639,0.00281912,3135.0,3134.8,3.93941703]
[1768283582530,0.00281912,3135.0,3134.8,0.251]
[1768283583320,0.00281912,3135.0,3134.8,3.93941703]
[1768283583564,0.00281912,3135.0,3134.8,0.251]
[1768283584349,0.00281912,3135.0,3134.8,3.93941703]
[1768283585554,0.00281912,3135.0,3134.8,0.251]
[1768283588857,0.00281912,3135.0,3134.7,3.34691626]
[1768283589058,0.00281912,3135.0,3134.8,0.251]
[1768283589440,0.00281912,3135.0,3134.8,3.59791626]
[1768283590157,0.00281912,3135.0,3134.8,0.251]
[1768283590858,0.00281912,3135.0,3134.8,3.59791626]
[1768283591064,0.00281912,3135.0,3134.9,0.35979163]
[1768283591230,0.00281912,3135.0,3134.9,3.34691626]
[1768283591425,0.00281912,3135.0,3134.8,0.251]
[1768283591623,0.002,3135.2,3134.9,3.34691626]
[1768283593659,0.002,3135.2,3134.8,0.251]
[1768283595679,0.002,3134.9,3134.8,0.251]
[1768283595868,0.002,3135.2,3134.8,0.59512858]
[1768283598272,0.002,3135.2,3134.8,3.78461122]
[1768283601877,0.002,3135.2,3135.0,3.18948264]
[1768283602076,0.00280596,3135.5,3135.2,3.18948264]
[1768283602279,0.00280596,3135.5,3135.3,3.44048264]
[1768283602488,0.00280596,3135.5,3135.3,0.59823775]
[1768283603278,0.00280596,3135.5,3135.3,0.251]
[1768283604351,0.00280596,3135.5,3135.3,3.44048264]
[1768283604548,0.002,3135.8,3135.3,0.251]
[1768283607858,0.002,3135.5,3135.3,0.251]
[1768283609789,0.002,3135.5,3135.3,3.44048264]
[1768283609962,0.002,3135.8,3135.4,0.34404826]
[1768283610163,0.002,3135.8,3135.3,0.251]
[1768283610989,0.002,3135.8,3135.3,3.44048264]
[1768283613054,3.1794127,3135.8,3135.3,0.251]
[1768283614289,0.002,3135.8,3135.3,0.251]
[1768283614489,0.002,3135.8,3135.1,3.22137239]
[1768283614490,0.002,3135.8,3135.4,0.251]
[1768283615865,0.002,3135.8,3134.9,0.01578108]
[1768283615866,3.20441761,3135.7,3134.9,0.01578108]
[1768283616070,0.002,3135.8,3134.4,3.16611167]
[1768283616071,3.20441761,3135.3,3134.4,3.16611167]
[1768283616270,3.20441761,3135.3,3134.8,0.251]
[1768283617590,6.39400679,3135.2,3134.8,0.251]
[1768283618184,3.20441761,3135.1,3134.0,3.16611167]
[1768283618383,3.20522073,3135.1,3134.0,3.19801977]
[1768283618572,3.20522073,3135.1,3133.9,0.00080637]
[1768283618573,3.20441761,3134.8,3134.1,0.251]
[1768283620507,6.39444996,3134.8,3134.1,0.251]
[1768283620708,6.39444996,3134.8,3134.1,0.5927918]
[1768283621733,3.20441761,3134.8,3134.1,0.5927918]
[1768283622209,6.39441854,3134.8,3134.1,0.5927918]
[1768283623597,3.20441761,3134.8,3134.1,0.5927918]
[1768283623904,8.09533356,3134.5,3134.2,0.251]
[1768283624216,3.20441761,3134.4,3134.2,0.251]
[1768283625322,3.20441761,3134.4,3134.0,0.251]
[1768283626140,3.20441761,3134.3,3133.9,0.25180637]
[1768283626356,3.20441761,3134.3,3133.9,0.00080637]
[1768283626514,3.20441761,3134.0,3133.7,0.00080392]
[1768283626830,3.20441761,3133.8,3133.7,0.00080392]
[1768283627036,3.20441761,3133.8,3133.4,0.00081953]
[1768283627198,3.20441761,3133.8,3133.5,0.251]
[1768283627398,3.20441761,3133.8,3133.4,0.00081953]
[1768283627630,3.20441761,3133.8,3133.5,0.251]
[1768283628217,8.09533356,3133.7,3133.4,0.00081953]
[1768283628437,3.20441761,3133.6,3133.4,0.00081953]
[1768283631934,3.20441761,3133.8,3133.4,0.00081953]
[1768283633802,9.22395823,3133.8,3133.4,0.00081953]
[1768283634436,3.20441761,3133.7,3133.4,0.00081953]
[1768283636116,6.3955357,3133.7,3133.4,0.00081953]
[1768283636333,3.20441761,3133.7,3133.4,0.00081953]
[1768283636756,3.20441761,3133.6,3133.4,0.00081953]
[1768283637247,3.20441761,3133.5,3132.9,0.251]
[1768283637443,3.20441761,3133.5,3133.0,0.251]
[1768283637943,3.20441761,3133.5,3132.5,0.00081638]
[1768283638144,3.20441761,3133.4,3132.9,0.251]
[1768283638332,4.89091595,3133.2,3132.5,0.00081638]
[1768283638533,3.20441761,3133.1,3132.5,0.25181638]
[1768283640111,3.20441761,3133.1,3132.5,0.59360919]
[1768283641255,3.20441761,3133.6,3132.7,3.16611167]
[1768283641439,3.20441761,3133.6,3132.8,8.05702762]
[1768283641645,3.20441761,3133.6,3132.9,3.16611167]
[1768283642223,3.20441761,3133.6,3132.9,3.97181443]
[1768283642647,3.20441761,3133.6,3132.9,3.16611167]
[1768283643356,3.20441761,3133.5,3132.8,0.001]
[1768283643541,3.20441761,3133.5,3132.9,0.251]
[1768283644164,3.20441761,3133.3,3132.8,0.001]
[1768283644362,3.20441761,3133.3,3133.0,0.251]
[1768283649574,3.20441761,3133.3,3132.8,0.001]
[1768283653581,7.94197718,3133.2,3132.8,0.001]
[1768283653742,7.91008638,3133.2,3132.8,0.001]
[1768283654088,4.89091595,3133.0,3132.5,0.00081638]
[1768283654246,2.82519266,3133.1,3132.1,2.72856654]
[1768283654247,4.89091595,3132.7,3132.1,2.72856654]
[1768283654434,3.05030098,3132.8,3132.3,0.251]
[1768283654661,7.71610861,3132.9,3132.3,0.251]
[1768283654977,2.82519266,3132.9,3132.3,0.251]
[1768283655645,2.82519266,3132.9,3132.1,2.72856654]
[1768283655846,6.01715483,3132.9,3132.2,0.251]
[1768283656170,2.82519266,3132.8,3131.9,2.72856654]
[1768283656373,2.82519266,3132.8,3132.0,0.251]
[1768283656756,2.82519266,3132.8,3132.0,2.97956654]
[1768283658174,6.01722635,3132.8,3132.0,2.97956654]
[1768283658361,6.01722635,3132.8,3132.0,3.76661479]
[1768283658677,6.01722635,3132.8,3131.2,0.00081121]
[1768283658678,2.82519266,3132.2,3131.2,0.00081121]
[1768283658976,2.82519266,3132.2,3131.3,2.97956654]
[1768283659678,2.82519266,3132.2,3131.2,2.72937775]
[1768283659846,2.82519266,3132.2,3131.3,2.97956654]
[1768283660046,2.82519266,3132.2,3131.4,3.51569591]
[1768283660447,2.82519266,3132.2,3131.4,0.78712937]
[1768283660647,2.82519266,3132.2,3131.3,2.72856654]
[1768283661380,2.82519266,3132.2,3131.2,5.14272716]
[1768283661746,2.82519266,3132.2,3131.2,0.25181121]
[1768283661747,2.82519266,3132.1,3131.2,0.25181121]
[1768283662450,2.82519266,3132.0,3131.2,0.25181121]
[1768283662780,2.82519266,3131.9,3131.2,0.25181121]
[1768283663665,2.82519266,3131.9,3131.2,0.76608393]
[1768283664585,0.5,3131.6,3131.2,0.76608393]
[1768283665288,0.5,3131.6,3131.2,3.49465047]
[1768283665883,0.5,3131.6,3131.2,0.76608393]
[1768283666384,0.5,3131.6,3131.5,0.001]
[1768283670051,0.46685336,3131.6,3131.5,0.001]
[1768283670251,0.318651,3131.6,3131.5,0.001]
[1768283670487,0.29163287,3131.6,3131.5,0.001]
[1768283670700,0.26941193,3131.6,3131.5,0.001]
[1768283671073,2.82519266,3131.9,3131.5,0.001]
[1768283678581,2.82519266,3131.9,3131.6,0.001]
[1768283680409,2.71176486,3132.1,3131.6,0.001]
[1768283680610,0.05,3134.0,3131.6,0.001]
[1768283680611,2.71176486,3132.9,3131.6,0.001]
[1768283680811,2.71176486,3132.6,3131.7,0.75526206]
[1768283681111,2.71176486,3132.4,3131.7,0.75526206]
[1768283681300,2.71176486,3132.4,3131.8,4.89636321]
[1768283681479,2.71176486,3132.7,3131.6,2.66070463]
[1768283682599,2.74365566,3132.6,3131.7,2.91070463]
[1768283682994,2.71176486,3132.6,3131.7,2.91070463]
[1768283683210,2.71176486,3132.8,3131.7,2.91070463]
[1768283683405,2.96276486,3132.9,3131.9,2.65970463]
[1768283683810,2.71176486,3132.9,3131.9,2.65970463]
[1768283684620,2.6922708,3132.9,3132.1,2.65970463]
[1768283684921,2.71176486,3133.1,3132.2,2.91070463]
[1768283687304,0.0318908,3133.0,3132.2,2.91070463]
[1768283687506,0.5,3132.8,3132.2,3.20177509]
[1768283688204,2.71176486,3132.7,3132.2,0.29107046]
[1768283688408,2.71176486,3132.6,3131.9,0.251]
[1768283688602,2.71176486,3132.6,3131.9,2.91070463]
[1768283693329,6.43771444,3132.8,3131.9,2.91070463]
[1768283693834,2.71176486,3132.7,3131.9,2.91070463]
[1768283694034,2.71176486,3132.7,3131.9,3.20177509]
[1768283695028,2.71176486,3132.7,3131.9,0.54207046]
[1768283695236,2.71176486,3132.7,3131.9,0.251]
[1768283699038,2.71176486,3132.7,3131.9,2.91070463]
[1768283700740,2.71176486,3132.7,3131.9,2.65970463]
[1768283700935,2.71176486,3132.7,3131.9,2.91070463]
[1768283701823,0.502,3132.8,3131.9,2.91070463]
[1768283702019,3.21376486,3132.8,3132.0,0.29107046]
[1768283702322,3.21376486,3132.8,3131.9,2.91070463]
[1768283702923,0.502,3132.8,3131.9,2.91070463]
[1768283703442,0.502,3132.8,3132.2,0.001]
[1768283703640,3.21376486,3132.8,3132.2,0.001]
[1768283704709,0.502,3132.8,3132.3,2.54332069]
[1768283704911,0.502,3132.8,3132.3,2.79775276]
[1768283708858,0.502,3132.8,3132.3,0.25443207]
[1768283709059,0.502,3132.8,3132.2,0.001]
[1768283709659,3.0430818,3132.8,3132.2,0.001]
[1768283711731,0.502,3132.8,3132.2,2.54432069]
[1768283715078,0.502,3132.8,3132.5,0.001]
[1768283715976,2.89594456,3132.8,3132.5,0.001]
[1768283717381,0.502,3132.8,3132.5,0.001]
[1768283729090,2.89594456,3132.8,3132.5,0.001]
[1768283732201,4.89636321,3132.7,3132.2,0.001]
[1768283733603,7.29030777,3132.7,3132.2,0.001]
[1768283733802,2.39394456,3132.6,3132.2,0.001]
[1768283734704,4.89636321,3132.7,3132.2,0.001]
[1768283734999,7.24513269,3132.7,3132.2,0.001]
[1768283735501,4.89636321,3132.7,3132.2,0.001]
[1768283736581,2.34876948,3132.6,3132.2,0.001]
[1768283738202,4.89636321,3132.7,3132.2,0.001]
[1768283738410,4.89636321,3132.7,3132.5,0.001]
[1768283738618,4.89636321,3132.7,3132.2,0.001]
[1768283738979,7.24513269,3132.7,3132.2,0.001]
[1768283739711,2.34876948,3132.6,3132.2,0.001]
[1768283741305,4.89760326,3132.5,3132.2,0.001]
[1768283742106,7.24637274,3132.5,3132.2,0.001]
[1768283742608,4.89760326,3132.5,3132.2,0.001]
[1768283743368,2.34876948,3132.4,3132.2,0.001]
[1768283743567,4.89760326,3132.5,3132.2,0.001]
[1768283744209,7.24637274,3132.5,3132.2,0.001]
[1768283744406,2.34876948,3132.5,3132.2,0.001]
[1768283749439,0.5,3132.3,3132.2,0.001]
[1768283749617,0.49744662,3132.3,3132.2,0.001]
[1768283749804,0.4752696,3132.3,3132.2,0.001]
[1768283750114,2.70833294,3132.3,3132.2,0.001]
[1768283750313,2.70577956,3132.3,3132.2,0.001]
[1768283750634,2.57811005,3132.3,3132.2,0.001]
[1768283750834,2.3411093,3132.3,3132.2,0.001]
[1768283751207,2.33855592,3132.3,3132.2,0.001]
[1768283751540,2.33600254,3132.3,3132.2,0.001]
[1768283751741,2.32834236,3132.3,3132.2,0.001]
[1768283752034,2.32578898,3132.3,3132.2,0.001]
[1768283752638,2.3232356,3132.3,3132.2,0.001]
[1768283752997,2.31302204,3132.3,3132.2,0.001]
[1768283753334,2.34876948,3132.6,3132.2,0.001]
[1768283759424,3.19404311,3132.8,3132.2,0.001]
[1768283759626,5.54281259,3132.8,3132.2,0.001]
[1768283761240,0.002,3132.3,3132.2,0.001]
[1768283761418,0.002,3132.6,3132.2,0.24013954]